bitfinex/quotes_ETHUSD_20250810
["timestamp","ask_amount","ask_price","bid_price","bid_amount"]
[1754811079673,0.4772,4215.2,4215.1,2.37242295]
[1754811079874,0.5863,4215.5,4215.0,0.001]
[1754811080203,0.5863,4215.5,4215.2,2.37231983]
[1754811080370,0.5863,4215.5,4215.1,2.37241429]
[1754811080568,1.0635,4215.5,4215.2,2.37235619]
[1754811081011,0.5956,4215.5,4215.3,2.37230781]
[1754811081513,0.5956,4215.5,4215.0,2.37347672]
[1754811081514,0.5956,4215.5,4215.2,2.37235053]
[1754811082211,0.5956,4215.5,4215.1,2.37240609]
[1754811083007,0.9451,4215.4,4215.0,2.37346923]
[1754811083182,0.4772,4215.3,4215.0,0.001]
[1754811083389,0.4679,4215.4,4215.0,0.001]
[1754811083599,0.4679,4215.4,4215.1,2.37242295]
[1754811083910,0.9451,4215.4,4215.2,2.37236466]
[1754811084899,0.4772,4215.4,4215.0,2.37347742]
[1754811085090,0.4772,4215.4,4215.0,2.62266516]
[1754811085810,0.4772,4215.4,4215.2,2.3723243]
[1754811086008,0.1184,4215.5,4215.1,2.37241998]
[1754811086308,1.0635,4215.5,4215.2,2.37236202]
[1754811086681,1.0635,4215.5,4215.3,2.37230275]
[1754811086882,0.1184,4215.5,4215.4,2.37225411]
[1754811087680,0.5956,4215.5,4215.0,0.25018774]
[1754811087882,0.9451,4215.4,4215.2,4.19136411]
[1754811088877,0.9451,4215.4,4215.1,4.1914066]
[1754811089082,0.4772,4215.3,4215.1,4.1914066]
[1754811089419,0.9451,4215.3,4215.1,4.1914066]
[1754811089604,0.9451,4215.3,4215.1,1.819]
[1754811089781,0.9451,4215.3,4215.0,2.37347734]
[1754811089983,0.9451,4215.3,4215.0,4.19247734]
[1754811090182,0.9451,4215.3,4215.0,0.001]
[1754811090485,0.9451,4215.2,4215.0,0.001]
[1754811090712,0.9451,4215.2,4215.1,2.37242295]
[1754811091015,0.9451,4215.2,4215.0,0.001]
[1754811091620,0.9451,4215.2,4215.0,2.37346518]
[1754811092525,0.4772,4215.2,4215.0,0.001]
[1754811092832,0.9451,4215.2,4215.0,0.001]
[1754811093535,0.9451,4215.1,4215.0,0.001]
[1754811093684,1.0635,4215.1,4215.0,0.001]
[1754811094322,3.43592295,4215.1,4215.0,0.001]
[1754811094513,3.46557823,4215.1,4215.0,0.001]
[1754811094891,3.43592295,4215.1,4215.0,0.001]
[1754811095086,4.19864721,4215.1,4215.0,0.001]
[1754811095490,1.82622426,4215.1,4215.0,0.001]
[1754811096020,4.19864721,4215.1,4215.0,0.001]
[1754811096399,1.82622426,4215.1,4215.0,0.001]
[1754811096801,1.35832426,4215.1,4215.0,0.001]
[1754811097034,0.5956,4215.1,4215.0,0.001]
[1754811097894,1.0635,4215.1,4215.0,0.001]
[1754811098245,3.43592295,4215.1,4215.0,0.001]
[1754811098705,1.0635,4215.1,4215.0,0.001]
[1754811099216,0.1184,4215.1,4215.0,0.001]
[1754811099787,1.0635,4215.1,4215.0,0.001]
[1754811100022,0.5956,4215.1,4215.0,0.001]
[1754811100206,1.0635,4215.1,4215.0,0.001]
[1754811100720,0.5956,4215.1,4215.0,0.001]
[1754811101185,1.0635,4215.1,4215.0,0.001]
[1754811101387,0.1184,4215.1,4215.0,0.001]
[1754811101801,0.5956,4215.1,4215.0,0.001]
[1754811101999,1.0635,4215.1,4215.0,0.001]
[1754811102201,3.43592295,4215.1,4215.0,0.001]
[1754811102405,1.0635,4215.1,4215.0,0.001]
[1754811104409,3.96436664,4215.1,4215.0,0.001]
[1754811105923,0.1184,4215.1,4215.0,0.001]
[1754811106889,0.1184,4215.1,4215.0,2.37347924]
[1754811108025,1.819,4215.4,4215.2,2.37236233]
[1754811109002,1.819,4215.4,4215.2,2.37231839]
[1754811109317,1.819,4215.4,4215.2,2.82134722]
[1754811109627,1.819,4215.4,4215.2,2.37234722]
[1754811110426,1.819,4215.4,4215.1,2.37242295]
[1754811110595,1.819,4215.4,4215.2,2.37232694]
[1754811110921,0.1184,4215.5,4215.2,2.37232694]
[1754811111308,0.1184,4215.5,4215.1,2.8214068]
[1754811111508,0.1184,4215.5,4215.1,0.5701832]
[1754811111804,0.1184,4215.5,4215.3,2.37225598]
[1754811111992,0.1184,4215.5,4215.2,2.3723536]
[1754811112196,0.1184,4215.5,4215.0,0.001]
[1754811112457,0.1184,4215.5,4215.4,2.37225411]
[1754811112626,0.1184,4216.0,4215.5,2.3721833]
[1754811112928,0.1184,4216.0,4215.8,2.37199324]
[1754811113292,0.1184,4216.0,4215.9,2.37197276]
[1754811113895,2.2489,4216.3,4215.7,2.37207671]
[1754811114124,2.2489,4216.3,4215.7,2.49047671]
[1754811114125,5.21935961,4216.3,4215.7,2.49047671]
[1754811114331,2.8476,4216.3,4215.8,2.37201431]
[1754811114623,0.9102,4216.2,4215.7,0.1184]
[1754811114928,0.9102,4216.2,4215.8,2.37202903]
[1754811115594,0.9102,4216.2,4215.9,2.37196856]
[1754811116307,1.9374,4216.3,4215.7,0.5674]
[1754811116533,1.9374,4216.3,4216.1,2.37180623]
[1754811116738,1.9374,4216.3,4216.2,2.37180399]
[1754811117109,1.9374,4216.3,4216.1,2.37184287]
[1754811117307,1.9374,4216.3,4215.8,2.37202903]
[1754811117517,1.9394,4216.3,4215.8,2.37202903]
[1754811117721,2.8496,4216.3,4215.7,2.49047758]
[1754811117922,2.8496,4216.3,4215.9,2.37195383]
[1754811118542,1.9394,4216.3,4216.0,2.37189267]
[1754811119816,1.9394,4216.3,4215.9,2.37195662]
[1754811120238,1.9394,4216.3,4215.8,2.62106212]
[1754811120434,0.9102,4216.2,4215.8,2.37202043]
[1754811120651,1.9394,4216.3,4215.9,2.37196131]
[1754811120846,1.9394,4216.3,4216.0,2.37191439]
[1754811121046,1.9394,4216.3,4216.1,2.37182241]
[1754811121254,0.002,4216.3,4216.2,2.37180399]
[1754811121549,0.002,4216.3,4216.2,2.82080399]
[1754811121842,0.002,4216.3,4216.2,6.20930399]
[1754811122223,0.002,4216.3,4216.2,6.32770399]
[1754811124415,0.002,4216.3,4216.2,8.14670399]
[1754811124617,0.002,4216.3,4216.2,6.13912452]
[1754811124916,0.9122,4216.3,4216.2,2.37180399]
[1754811125116,0.002,4216.3,4216.2,2.37180399]
[1754811125363,0.002,4216.3,4216.2,2.82080399]
[1754811126311,0.002,4216.3,4216.2,2.37180399]
[1754811126521,0.002,4216.3,4216.2,2.82080399]
[1754811126828,0.002,4216.3,4216.2,11.47559542]
[1754811127030,0.002,4216.3,4216.2,16.29459542]
[1754811127838,0.002,4216.4,4216.3,5.92174774]
[1754811128146,0.002,4216.6,4216.5,2.37163524]
[1754811128324,0.002,4216.6,4216.5,7.18963524]
[1754811128531,0.002,4217.9,4217.7,2.37096047]
[1754811128735,0.002,4217.9,4217.6,2.48939874]
[1754811129144,0.002,4217.9,4217.8,2.37090426]
[1754811129976,0.002,4217.9,4217.8,5.81990426]
[1754811130430,0.002,4217.9,4217.8,6.20840426]
[1754811130752,0.002,4217.9,4217.8,5.81990426]
[1754811131054,0.002,4217.9,4217.8,8.02840426]
[1754811131936,0.002,4217.9,4217.8,7.63990426]
[1754811132341,0.002,4217.9,4217.8,5.81990426]
[1754811132668,0.002,4217.9,4217.8,5.37090426]
[1754811133020,0.9122,4217.9,4217.8,5.37090426]
[1754811134049,0.9122,4217.9,4217.6,0.1184]
[1754811134236,0.9102,4217.8,4216.8,2.37144231]
[1754811134440,2.37096614,4217.7,4217.3,0.1184]
[1754811134642,0.9102,4217.6,4217.3,0.1184]
[1754811135057,0.9102,4217.5,4217.3,0.1184]
[1754811135234,0.9102,4217.4,4217.3,0.1184]
[1754811135434,0.002,4217.9,4217.3,2.48956942]
[1754811135655,0.9102,4217.8,4217.3,0.1184]
[1754811135861,0.9102,4217.7,4217.3,0.1184]
[1754811136259,0.9102,4217.6,4217.3,0.1184]
[1754811136437,0.1184,4217.8,4217.3,0.1184]
[1754811136438,0.9102,4217.5,4217.3,0.1184]
[1754811136765,1.05823911,4217.4,4216.6,0.1184]
[1754811136971,2.37148586,4216.8,4216.0,2.37190177]
[1754811137151,2.48981002,4217.0,4216.4,0.1184]
[1754811137345,2.37106977,4217.6,4215.9,3.0]
[1754811137346,0.911,4216.7,4216.0,2.37190381]
[1754811137548,1.0294,4216.7,4216.1,0.1184]
[1754811138468,0.911,4216.6,4216.1,0.1184]
[1754811138868,3.18266455,4216.5,4216.1,0.1184]
[1754811139070,0.911,4216.4,4216.1,0.1184]
[1754811139273,1.2707526,4216.4,4215.8,0.001]
[1754811139470,0.1184,4216.1,4215.8,0.001]
[1754811139672,2.37192181,4216.0,4215.8,0.001]
[1754811139971,0.911,4216.0,4215.8,0.001]
[1754811140176,0.911,4215.9,4215.8,0.001]
[1754811140779,2.49026374,4216.1,4215.8,0.001]
[1754811141074,2.37192018,4216.0,4215.8,0.001]
[1754811141240,3.28292018,4216.0,4215.8,0.001]
[1754811141445,0.911,4215.9,4215.8,0.001]
[1754811142860,0.4749,4215.9,4215.8,0.001]
[1754811143165,0.911,4215.9,4215.8,0.001]
[1754811143749,0.4749,4215.9,4215.8,0.001]
[1754811143982,0.1184,4216.1,4215.8,0.001]
[1754811144871,0.5933,4216.1,4215.8,0.001]
[1754811145465,1.0294,4216.1,4215.8,0.001]
[1754811145663,0.1184,4216.1,4215.8,0.001]
[1754811146491,3.28267679,4216.5,4215.8,0.001]
[1754811146791,0.1184,4216.3,4215.8,0.001]
[1754811147095,2.49018118,4216.3,4215.8,0.001]
[1754811147395,0.911,4216.2,4215.8,0.001]
[1754811147567,3.28280879,4216.2,4215.8,0.001]
[1754811147774,0.911,4216.1,4215.8,0.001]
[1754811148187,0.1184,4216.3,4215.8,0.001]
[1754811148493,0.911,4216.0,4215.8,0.001]
[1754811150388,0.911,4215.9,4215.8,0.001]
[1754811151517,1.0294,4216.3,4215.8,0.001]
[1754811151885,0.1184,4216.3,4215.8,0.001]
[1754811152094,0.911,4216.2,4215.8,0.001]
[1754811153981,0.4361,4216.2,4215.8,0.001]
[1754811154181,0.4749,4216.1,4215.8,0.001]
[1754811154387,0.911,4216.1,4215.8,0.001]
[1754811154620,3.28258706,4216.6,4215.8,2.37301072]
[1754811154920,0.1184,4216.5,4215.9,0.1184]
[1754811156007,0.1184,4216.5,4215.9,2.4903668]
[1754811156392,0.1184,4216.5,4215.9,0.1184]
[1754811157100,0.1184,4216.5,4215.9,2.49035895]
[1754811157296,0.1184,4216.5,4215.9,0.1184]
[1754811157734,0.1184,4216.5,4215.9,2.49036696]
[1754811157930,0.1184,4216.5,4216.0,2.3719008]
[1754811158435,0.911,4216.4,4215.9,0.1184]
[1754811158738,0.911,4216.3,4215.9,0.1184]
[1754811159108,0.4749,4216.3,4215.9,0.1184]
[1754811159446,1.821,4216.8,4216.0,0.469]
[1754811159753,0.913,4217.5,4216.4,8.26629143]
[1754811159932,0.002,4217.5,4217.0,2.3713361]
[1754811160108,0.002,4217.5,4217.2,0.1184]
[1754811160508,0.002,4217.4,4217.2,0.1184]
[1754811161054,0.002,4217.4,4217.2,2.48958956]
[1754811161432,0.002,4217.4,4217.2,2.7385821]
[1754811161656,0.002,4217.4,4217.2,0.36735896]
[1754811161813,0.002,4217.4,4217.2,0.1184]
[1754811162947,0.913,4217.4,4217.2,0.1184]
[1754811163152,2.37126619,4217.2,4216.4,3.0]
[1754811163360,3.28234105,4217.1,4216.9,0.1184]
[1754811163647,2.37150818,4216.8,4216.3,0.1184]
[1754811163817,0.1184,4216.9,4216.3,0.1184]
[1754811164006,2.37162546,4216.6,4216.3,0.1184]
[1754811164214,0.911,4216.5,4216.3,0.1184]
[1754811164719,3.28269149,4216.4,4216.3,0.1184]
[1754811164906,0.911,4216.4,4216.0,0.1184]
[1754811165106,0.911,4216.3,4216.0,0.1184]
[1754811165504,1.9364,4216.6,4216.0,0.1184]
[1754811165715,0.911,4216.2,4215.8,0.001]
[1754811165937,2.37190477,4216.1,4215.8,0.001]
[1754811166448,0.1184,4215.9,4215.8,0.001]
[1754811166654,2.49037276,4215.9,4215.8,0.001]
[1754811166851,3.40137276,4215.9,4215.8,0.001]
[1754811167012,4.1604994,4215.9,4215.8,0.001]
[1754811168938,4.19014905,4215.9,4215.8,0.001]
[1754811169447,4.1604994,4215.9,4215.8,0.001]
[1754811170954,4.19014905,4215.9,4215.8,0.001]
[1754811173162,15.45644048,4215.9,4215.8,0.001]
[1754811173362,15.97679083,4215.9,4215.8,0.001]
[1754811173771,2.37219784,4215.5,4215.4,0.001]
[1754811173989,13.14276152,4215.5,4215.4,0.001]
[1754811174153,13.11310905,4215.5,4215.4,0.001]
[1754811174336,14.02230905,4215.5,4215.4,0.001]
[1754811175332,17.57230905,4215.5,4215.4,0.001]
[1754811176183,17.66730105,4215.5,4215.4,0.001]
[1754811177586,9.30601762,4215.5,4215.4,0.001]
[1754811193095,9.30601762,4215.5,4215.0,1e-08]
[1754811193096,0.55,4215.4,4215.0,1e-08]
[1754811193301,14.18871438,4215.1,4215.0,1e-08]
[1754811193477,16.12611438,4215.1,4215.0,1e-08]
[1754811193681,17.03531438,4215.1,4215.0,1e-08]
[1754811194079,8.76902295,4215.1,4215.0,1e-08]
[1754811198411,8.86403095,4215.1,4215.0,1e-08]
[1754811198608,11.18107163,4215.1,4215.0,1e-08]
[1754811199524,2.92247924,4215.0,4213.7,0.001]
[1754811199726,14.18922104,4214.2,4213.7,0.001]
[1754811199884,16.12662104,4214.2,4213.7,0.001]
[1754811200086,18.92256885,4214.2,4213.7,0.001]
[1754811200920,19.42819365,4214.2,4214.1,1e-08]
[1754811201287,19.42819365,4214.2,4213.7,0.001]
[1754811201288,2.3736055,4213.0,4212.9,0.499]
[1754811201540,4.1926055,4213.0,4212.9,0.499]
[1754811201693,4.22227556,4213.0,4212.9,0.499]
[1754811202026,2.92377453,4212.7,4212.6,0.04]
[1754811202204,16.15713814,4212.7,4212.6,0.04]
[1754811202404,8.80717453,4212.7,4212.6,0.04]
[1754811203591,8.80717453,4212.7,4211.6,0.04]
[1754811203592,0.55,4212.4,4211.6,0.04]
[1754811203922,2.49273815,4211.7,4211.6,0.04]
[1754811204132,7.34141737,4211.7,4211.6,0.04]
[1754811204431,7.31173815,4211.7,4211.6,0.04]
[1754811205225,7.86173815,4211.7,4211.6,0.04]
[1754811207424,7.31173815,4211.7,4211.6,0.04]
[1754811208139,7.31173815,4211.7,4211.6,0.5141]
[1754811208604,1.9374,4211.7,4211.6,0.9026]
[1754811209423,1.9374,4211.7,4211.6,0.04]
[1754811209626,1.9374,4211.7,4211.6,0.5141]
[1754811210129,1.9374,4211.7,4211.6,0.04]
[1754811210531,4.31173815,4211.7,4211.6,0.04]
[1754811211027,1.9374,4211.7,4211.6,0.04]
[1754811211358,1.9374,4211.7,4211.6,0.9026]
[1754811211532,1.819,4211.7,4211.6,3.84225059]
[1754811211859,0.1184,4212.1,4212.0,2.37416904]
[1754811212046,0.1184,4212.1,4212.0,3.23676904]
[1754811212047,1.82,4212.1,4212.0,3.23676904]
[1754811212358,1.82,4212.1,4212.0,3.35516904]
[1754811213462,1.82,4212.1,4212.0,0.5925]
[1754811213760,1.82,4212.1,4212.0,0.981]
[1754811214164,1.82,4212.1,4212.0,0.4741]
[1754811214654,1.82,4212.1,4212.0,3.23676904]
[1754811215033,1.82,4212.1,4212.0,3.35516904]
[1754811215224,0.1184,4212.6,4212.5,2.37388724]
[1754811215426,0.1184,4212.9,4212.8,2.37369989]
[1754811215646,1.9384,4212.9,4212.8,2.37369989]
[1754811215931,1.82,4212.9,4212.8,2.37369989]
[1754811216131,1.82,4212.9,4212.8,2.88059989]
[1754811216330,1.82,4212.9,4212.8,3.35469989]
[1754811217429,1.82,4212.9,4212.8,3.23629989]
[1754811219502,1.82,4212.9,4212.8,2.84779989]
[1754811221532,1.82,4212.9,4212.8,2.37369989]
[1754811221732,1.82,4212.9,4212.6,2.49218055]
[1754811221936,1.82,4212.9,4212.6,0.1184]
[1754811222247,0.1184,4212.8,4212.2,0.1184]
[1754811222413,0.6081,4212.8,4212.2,0.1184]
[1754811222602,0.6081,4212.8,4212.0,0.1184]
[1754811222932,0.6081,4212.8,4211.9,3.001]
[1754811222933,0.1184,4212.4,4211.9,0.001]
[1754811223135,1.82,4212.3,4211.9,0.001]
[1754811223632,2.40377348,4212.2,4211.9,0.001]
[1754811223838,2.49256904,4212.0,4211.9,0.001]
[1754811224335,3.43856904,4212.0,4211.9,0.001]
[1754811224505,4.23150904,4212.0,4211.9,0.001]
[1754811224906,4.20183193,4212.0,4211.9,0.001]
[1754811225108,4.78150904,4212.0,4211.9,0.001]
[1754811225418,4.20183193,4212.0,4211.9,0.001]
[1754811226236,7.75183193,4212.0,4211.9,0.001]
[1754811231605,9.57183193,4212.0,4211.9,0.001]
[1754811232034,17.71972336,4212.0,4211.9,1e-08]
[1754811232218,18.22505517,4212.0,4211.9,1e-08]
[1754811232891,2.92433815,4211.7,4211.6,1e-08]
[1754811233044,10.09105805,4211.7,4211.6,1e-08]
[1754811233244,10.95167883,4211.7,4211.6,1e-08]
[1754811235275,10.95460141,4211.7,4211.6,1e-08]
[1754811235655,0.55,4211.5,4208.7,0.4555]
[1754811235855,2.37546618,4209.7,4208.7,0.4555]
[1754811236068,4.19746618,4209.7,4208.7,0.4555]
[1754811236377,4.2271595,4209.7,4208.6,0.04]
[1754811236589,7.19746618,4209.7,4208.8,0.4555]
[1754811236950,8.08776618,4209.7,4208.8,0.4555]
[1754811237152,9.1340784,4209.7,4208.8,0.4555]
[1754811237351,9.1340784,4209.7,4208.6,0.4955]
[1754811237551,5.2437784,4209.7,4209.1,0.001]
[1754811237950,9.1340784,4209.7,4209.1,0.001]
[1754811238462,2.37574836,4209.2,4209.1,0.001]
[1754811238663,4.19874836,4209.2,4209.1,0.001]
[1754811238852,4.85619034,4209.2,4209.1,0.001]
[1754811240079,5.31659034,4209.2,4209.1,0.001]
[1754811240277,4.85619034,4209.2,4209.1,0.001]
[1754811242192,4.97459034,4209.2,4209.1,0.001]
[1754811243387,5.86489034,4209.2,4209.1,0.001]
[1754811243579,5.43499034,4209.2,4209.1,0.001]
[1754811243775,5.60962458,4209.2,4209.1,0.001]
[1754811244359,6.03952458,4209.2,4209.1,0.001]
[1754811244556,5.14922458,4209.2,4209.1,0.001]
[1754811250195,6.03952458,4209.2,4209.1,0.001]
[1754811250398,5.14922458,4209.2,4209.1,0.001]
[1754811251526,6.03952458,4209.2,4209.1,0.001]
[1754811251821,5.14922458,4209.2,4209.1,0.001]
[1754811252024,6.03952458,4209.2,4209.1,0.001]
[1754811255731,5.14922458,4209.2,4209.1,0.001]
[1754811256343,6.03952458,4209.2,4209.1,0.001]
[1754811257036,5.14922458,4209.2,4209.1,0.001]
[1754811259358,5.60312458,4209.2,4209.1,0.001]
[1754811259533,6.06422458,4209.2,4209.1,0.001]
[1754811259734,5.14922458,4209.2,4209.1,0.001]
[1754811260264,6.06422458,4209.2,4209.1,0.001]
[1754811262254,10.12065068,4209.2,4209.1,0.001]
[1754811263020,9.61422458,4209.2,4209.1,0.001]
[1754811263267,10.12093929,4209.2,4209.1,0.001]
[1754811263947,10.12094947,4209.2,4209.1,0.001]
[1754811264523,2.3760306,4208.7,4208.6,0.04]
[1754811264738,13.11807298,4208.7,4208.6,0.04]
[1754811264945,17.0033726,4208.7,4208.6,0.04]
[1754811265129,17.51060074,4208.7,4208.6,0.04]
[1754811265332,18.06060074,4208.7,4208.6,1e-08]
[1754811265559,9.9840027,4208.7,4208.6,1e-08]
[1754811265758,10.39841092,4208.7,4208.6,1e-08]
[1754811266170,10.39841092,4208.7,4208.2,0.001]
[1754811266171,2.37625644,4208.3,4208.2,1e-08]
[1754811266349,7.77795964,4208.3,4208.2,1e-08]
[1754811266552,7.70548458,4208.3,4208.2,1e-08]
[1754811266771,4.70548458,4208.3,4208.2,0.44420001]
[1754811266971,4.22795964,4208.3,4208.2,1e-08]
[1754811267171,6.97963462,4208.3,4208.2,1e-08]
[1754811267374,5.98836431,4208.3,4208.2,1e-08]
[1754811267548,4.19825644,4208.3,4208.2,1e-08]
[1754811267755,1.822,4208.3,4208.2,1e-08]
[1754811267947,0.00305893,4208.9,4208.2,0.83270001]
[1754811268189,0.00305893,4208.9,4208.2,0.38850001]
[1754811268190,4.20797641,4208.8,4208.2,0.38850001]
[1754811268357,4.20797641,4208.8,4208.3,0.4442]
[1754811268679,2.37607797,4208.7,4208.4,0.4442]
[1754811268847,1.86170108,4208.6,4208.4,0.4442]
[1754811269048,2.37624661,4208.4,4208.2,1e-08]
[1754811269248,4.20825644,4208.3,4208.2,1e-08]
[1754811269448,1.832,4208.3,4208.2,1e-08]
[1754811269754,4.20825644,4208.3,4208.2,1e-08]
[1754811271189,5.12325644,4208.3,4208.2,1e-08]
[1754811271368,2.37625644,4208.3,4208.2,1e-08]
[1754811271556,4.21625644,4208.3,4208.2,1e-08]
[1754811272371,1.84,4208.3,4208.2,1e-08]
[1754811272586,1.84,4208.3,4208.2,0.83270001]
[1754811272754,1.84,4208.3,4208.2,0.44420001]
[1754811272947,1.84,4208.3,4208.2,0.83270001]
[1754811274051,1.84,4208.3,4208.2,1e-08]
[1754811274052,4.21625644,4208.3,4208.2,1e-08]
[1754811274257,4.87846852,4208.3,4208.2,1e-08]
[1754811274657,4.90817172,4208.3,4208.2,1e-08]
[1754811274881,4.87846852,4208.3,4208.2,1e-08]
[1754811275183,4.90817172,4208.3,4208.2,1e-08]
[1754811275487,5.82317172,4208.3,4208.2,1e-08]
[1754811275782,5.79346852,4208.3,4208.2,1e-08]
[1754811276083,5.91266852,4208.3,4208.2,1e-08]
[1754811278280,1.9592,4208.3,4208.2,1e-08]
[1754811278583,1.9592,4208.3,4208.2,0.44420001]
[1754811279186,1.9592,4208.3,4208.2,1e-08]
[1754811280258,1.9592,4208.3,4208.2,0.83270001]
[1754811280259,1.84,4208.3,4208.2,0.83270001]
[1754811280459,1.84,4208.3,4208.2,0.44420001]
[1754811281494,1.84,4208.3,4208.2,1e-08]
[1754811281864,5.8321098,4208.3,4208.2,1e-08]
[1754811282100,5.8024066,4208.3,4208.2,1e-08]
[1754811282468,14.64934985,4208.3,4208.2,1e-08]
[1754811282794,17.64934985,4208.3,4208.2,1e-08]
[1754811283297,14.64934985,4208.3,4208.2,1e-08]
[1754811283802,14.74451385,4208.3,4208.2,1e-08]
[1754811284695,6.4475706,4208.3,4208.2,1e-08]
[1754811284898,9.4475706,4208.3,4208.2,1e-08]
[1754811285194,9.95857627,4208.3,4208.2,1e-08]
[1754811285394,9.45061861,4208.3,4208.2,1e-08]
[1754811288998,9.95827248,4208.3,4208.2,1e-08]
[1754811289296,9.45061861,4208.3,4208.2,1e-08]
[1754811289499,9.95827142,4208.3,4208.2,1e-08]
[1754811295710,2.37636938,4208.1,4206.6,0.04]
[1754811295911,2.37711115,4206.8,4206.6,0.4768]
[1754811296092,1.851,4206.7,4206.6,0.04]
[1754811296414,4.22816024,4206.7,4206.6,0.04]
[1754811296774,0.713918,4207.0,4206.6,0.8653]
[1754811296979,2.45072285,4208.3,4206.7,0.8253]
[1754811296980,1.854,4206.9,4206.7,0.8253]
[1754811297199,1.854,4206.8,4206.6,0.04]
[1754811297374,1.854,4206.7,4206.6,0.04]
[1754811298211,1.854,4206.7,4206.6,0.4285]
[1754811298412,1.854,4206.7,4206.6,0.8653]
[1754811298983,1.854,4206.7,4206.6,0.4768]
[1754811299882,1.9722,4206.7,4206.6,0.8653]
[1754811300081,1.9722,4206.7,4206.6,3.24251675]
[1754811300289,1.9722,4206.7,4206.6,0.8653]
[1754811300486,2.853,4208.0,4206.6,0.8653]
[1754811300831,0.1192,4207.4,4207.1,2.37687937]
[1754811300981,1.9722,4207.4,4207.2,0.8253]
[1754811301178,1.9722,4207.4,4207.3,0.8253]
[1754811301489,2.05022,4207.4,4206.8,0.4368]
[1754811301688,1.853,4207.4,4206.9,2.76554487]
[1754811301880,1.9722,4207.4,4207.1,2.3768837]
[1754811302077,1.9722,4207.4,4207.3,2.37682123]
[1754811302281,1.9722,4207.4,4207.3,3.20212123]
[1754811302527,1.9722,4207.4,4206.8,0.1192]
[1754811302815,1.9722,4207.4,4206.7,0.4368]
[1754811302816,2.853,4208.0,4206.9,0.8253]
[1754811303050,0.1192,4207.7,4207.5,2.37669798]
[1754811303315,1.9772,4207.9,4207.6,0.4368]
[1754811303524,1.9772,4207.9,4207.6,3.20194043]
[1754811303722,1.9772,4207.9,4207.2,2.37687773]
[1754811303894,1.9772,4207.9,4207.7,0.8253]
[1754811304215,0.1192,4208.2,4207.8,0.8253]
[1754811304425,1.9772,4208.2,4208.1,2.37636938]
[1754811304626,1.9772,4208.2,4208.1,0.8253]
[1754811304913,1.858,4208.2,4208.1,3.20166938]
[1754811305115,1.858,4208.2,4208.1,0.8253]
[1754811305319,1.858,4208.2,4207.9,0.1192]
[1754811305612,0.1192,4208.0,4207.7,0.4368]
[1754811305823,0.1192,4208.0,4207.7,0.3885]
[1754811305997,1.858,4208.2,4207.9,2.37648233]
[1754811306192,1.858,4208.2,4208.0,3.20171813]
[1754811306517,1.858,4208.2,4208.1,3.20166938]
[1754811306716,0.1192,4208.5,4208.4,2.37619998]
[1754811306929,1.9772,4208.7,4208.2,0.8253]
[1754811307085,1.9772,4208.7,4208.3,0.8253]
[1754811307290,1.9772,4208.7,4208.4,3.20144606]
[1754811307481,1.9772,4208.7,4207.7,2.77537199]
[1754811307482,0.1192,4208.7,4207.7,0.39880072]
[1754811307683,0.002,4209.2,4209.1,2.3758048]
[1754811307914,0.002,4209.2,4208.5,0.4368]
[1754811308103,0.002,4209.2,4209.1,2.3758048]
[1754811308305,0.002,4209.2,4208.9,0.8253]
[1754811308514,0.002,4209.2,4209.1,2.3758048]
[1754811309015,0.002,4209.2,4209.1,3.2011048]
[1754811309389,0.002,4209.2,4209.1,3.7588014]
[1754811310485,0.002,4209.2,4209.1,6.7588014]
[1754811312434,0.002,4209.2,4209.1,5.3758048]
[1754811313103,0.002,4209.2,4208.3,0.4368]
[1754811313304,0.002,4209.2,4208.7,2.37599712]
[1754811313632,0.002,4209.2,4208.0,2.37638656]
[1754811313829,0.9338,4209.1,4207.4,0.8253]
[1754811314140,0.9338,4209.0,4207.4,2.81354214]
[1754811314305,2.37631291,4208.2,4207.1,0.4368]
[1754811314636,2.37631291,4208.2,4207.4,2.37675649]
[1754811314922,3.31011291,4208.2,4207.1,0.4368]
[1754811315311,4.06751517,4208.2,4206.9,0.001]
[1754811315718,4.06751517,4208.2,4207.0,2.37698106]
[1754811316036,4.06751517,4208.2,4206.9,0.001]
[1754811316337,3.31011291,4208.2,4207.1,0.4368]
[1754811316507,3.31011291,4208.2,4206.9,0.001]
[1754811316843,3.33981682,4208.2,4206.9,0.001]
[1754811317330,3.33981682,4208.2,4206.9,2.37802432]
[1754811317644,3.45901682,4208.2,4206.9,0.001]
[1754811318003,4.00901682,4208.2,4206.9,0.001]
[1754811318826,3.42931291,4208.2,4207.1,2.37689002]
[1754811319028,4.84673638,4208.2,4206.9,0.001]
[1754811319804,4.84673638,4208.2,4206.9,2.37802148]
[1754811320406,4.84673638,4208.2,4206.9,0.001]
[1754811321841,7.8491668,4208.2,4208.1,1e-08]
[1754811322154,7.81946289,4208.2,4208.1,1e-08]
[1754811322312,8.71946289,4208.2,4208.1,1e-08]
[1754811326302,7.81946289,4208.2,4208.1,1e-08]
[1754811328165,3.88566289,4208.2,4208.1,1e-08]
[1754811328472,4.83756289,4208.2,4208.1,1e-08]
[1754811328991,3.88566289,4208.2,4208.1,1e-08]
[1754811329301,3.88323247,4208.2,4208.1,1e-08]
[1754811330102,4.83513247,4208.2,4208.1,1e-08]
[1754811330974,3.88323247,4208.2,4208.1,1e-08]
[1754811331169,3.33323247,4208.2,4208.1,1e-08]
[1754811331669,2.49551291,4208.2,4208.1,1e-08]
[1754811331869,2.49751291,4208.2,4208.1,1e-08]
[1754811332396,4.35351291,4208.2,4208.1,1e-08]